bitfinex-derivatives/quotes_BTCF0:USTF0_20240929
["timestamp","ask_amount","ask_price","bid_price","bid_amount"]
[1727600642039,0.15546687,65641.0,65640.0,0.078153]
[1727600642339,0.23161887,65641.0,65640.0,0.078153]
[1727600645645,0.118152,65641.0,65640.0,0.18709258]
[1727600646955,0.118152,65641.0,65640.0,0.18708346]
[1727600655644,0.118152,65641.0,65640.0,0.11093046]
[1727600659059,0.118152,65641.0,65640.0,0.18708446]
[1727600660760,0.23161786,65641.0,65638.0,0.0829768]
[1727600660960,0.23161786,65641.0,65639.0,0.076155]
[1727600660961,0.11346586,65640.0,65639.0,0.076155]
[1727600661251,0.13346586,65640.0,65639.0,0.076155]
[1727600662457,0.13446586,65640.0,65639.0,0.077155]
[1727600663747,0.11446586,65640.0,65639.0,0.077155]
[1727600666748,0.12446587,65640.0,65639.0,0.077155]
[1727600667247,0.20061987,65640.0,65639.0,0.077155]
[1727600667861,0.06904984,65640.0,65639.0,0.27822778]
[1727600669057,0.003,65641.0,65640.0,0.076154]
[1727600669262,0.003,65641.0,65640.0,0.18614258]
[1727600669449,0.3643,65643.0,65640.0,0.10998858]
[1727600669658,0.3643,65643.0,65642.0,0.196151]
[1727600669854,0.3608,65643.0,65642.0,0.30613958]
[1727600670858,0.3628,65643.0,65642.0,0.30613958]
[1727600671658,0.3628,65643.0,65642.0,0.30586159]
[1727600672161,0.3628,65643.0,65642.0,0.31586159]
[1727600673561,0.3638,65643.0,65642.0,0.31786159]
[1727600675859,0.47726416,65643.0,65642.0,0.208151]
[1727600678565,0.48726416,65643.0,65642.0,0.198151]
[1727600681658,0.12646416,65643.0,65642.0,0.198151]
[1727600682765,0.013,65643.0,65642.0,0.30779604]
[1727600686553,0.013,65643.0,65642.0,0.307796]
[1727600690869,0.12646418,65643.0,65642.0,0.198151]
[1727600694173,0.12646418,65643.0,65642.0,0.208151]
[1727600694676,0.11646418,65643.0,65642.0,0.208151]
[1727600695864,0.12646418,65643.0,65642.0,0.208151]
[1727600696794,0.11646418,65643.0,65642.0,0.208151]
[1727600697870,0.003,65643.0,65642.0,0.31766279]
[1727600700174,0.003,65643.0,65642.0,0.19766279]
[1727600700370,0.003,65643.0,65642.0,0.31766279]
[1727600701278,0.003,65643.0,65642.0,0.31761631]
[1727600701479,0.013,65643.0,65642.0,0.31761631]
[1727600701680,0.013,65643.0,65642.0,0.3176167]
[1727600701977,0.013,65643.0,65642.0,0.3076167]
[1727600704983,0.013,65643.0,65642.0,0.30761716]
[1727600705980,0.013,65643.0,65642.0,0.198151]
[1727600706477,0.013,65643.0,65642.0,0.208151]
[1727600706886,0.08915,65643.0,65642.0,0.198151]
[1727600712085,0.08915,65643.0,65642.0,0.002]
[1727600712793,0.08915,65643.0,65642.0,0.04755413]
[1727600713088,0.076156,65638.0,65637.0,0.0035]
[1727600713281,0.19962461,65638.0,65637.0,0.12]
[1727600714892,0.19962466,65638.0,65637.0,0.12]
[1727600716889,0.20362466,65638.0,65637.0,0.121]
[1727600717891,0.20662466,65638.0,65637.0,0.122]
[1727600719892,0.20662359,65638.0,65637.0,0.122]
[1727600720895,0.017,65638.0,65637.0,0.51418]
[1727600721193,0.086156,65638.0,65637.0,0.51418]
[1727600722793,0.086156,65638.0,65637.0,0.590337]
[1727600723684,0.086156,65638.0,65637.0,0.600337]
[1727600724191,0.086156,65638.0,65637.0,0.590337]
[1727600724386,0.3258486,65640.0,65639.0,0.076155]
[1727600724697,0.3258486,65640.0,65639.0,0.31655473]
[1727600725195,0.3358486,65640.0,65639.0,0.42284115]
[1727600725795,0.3258486,65640.0,65639.0,0.42284115]
[1727600726891,0.3258486,65640.0,65639.0,0.42484115]
[1727600727992,0.3258486,65640.0,65639.0,0.078155]
[1727600727993,0.43931473,65640.0,65639.0,0.078155]
[1727600728197,0.51546873,65640.0,65639.0,0.078155]
[1727600728395,0.55546873,65640.0,65639.0,0.078155]
[1727600730590,0.47931473,65640.0,65639.0,0.078155]
[1727600732301,0.55546873,65640.0,65639.0,0.078155]
[1727600733901,0.22962013,65640.0,65639.0,0.078155]
[1727600736005,0.116154,65640.0,65639.0,0.31748406]
[1727600738108,0.116154,65640.0,65639.0,0.24132906]
[1727600739397,0.116154,65640.0,65639.0,0.24009202]
[1727600743007,0.29794243,65640.0,65639.0,0.002]
[1727600743206,0.38198943,65640.0,65639.0,0.002]
[1727600745610,0.22962138,65640.0,65639.0,0.002]
[1727600750913,0.116154,65640.0,65639.0,0.24018182]
[1727600756412,0.476954,65640.0,65639.0,0.24018182]
[1727600757022,0.476954,65640.0,65639.0,0.25817182]
[1727600757909,0.59042454,65640.0,65639.0,0.01999]
[1727600764913,0.59042454,65640.0,65639.0,0.02547]
[1727600766117,0.43884871,65640.0,65639.0,0.22518321]
[1727600768028,0.43884871,65640.0,65639.0,0.13403416]
[1727600768418,0.43884871,65640.0,65639.0,0.26305282]
[1727600769012,0.07804871,65640.0,65639.0,0.26305282]
[1727600770227,0.07804871,65640.0,65639.0,0.13403416]
[1727600771329,0.07804871,65640.0,65639.0,0.26305872]
[1727600772720,0.07804871,65640.0,65639.0,0.13403416]
[1727600773226,0.07804871,65640.0,65639.0,0.10135982]
[1727600773427,0.07804871,65640.0,65639.0,0.20969274]
[1727600776334,0.07804871,65640.0,65639.0,0.10135982]
[1727600776829,0.07804871,65640.0,65639.0,0.20970237]
[1727600779923,0.07804871,65640.0,65639.0,0.10135982]
[1727600780124,0.07804871,65640.0,65639.0,0.20971838]
[1727600781030,0.14476799,65640.0,65639.0,0.02547]
[1727600782632,0.14476799,65640.0,65639.0,0.03552]
[1727600786147,0.19151872,65640.0,65639.0,0.03552]
[1727600786328,0.10746978,65640.0,65639.0,0.03552]
[1727600787632,0.10746979,65640.0,65639.0,0.03552]
[1727600788140,0.07804871,65640.0,65639.0,0.23529473]
[1727600796143,0.07804871,65640.0,65639.0,0.22012849]
[1727600796442,0.07804871,65640.0,65639.0,0.1442255]
[1727600797534,0.07804871,65640.0,65639.0,0.14422714]
[1727600799238,0.0035,65642.0,65639.0,0.14422714]
[1727600799239,0.0035,65642.0,65639.0,0.19422714]
[1727600799443,0.0035,65642.0,65641.0,0.12]
[1727600799745,0.079647,65646.0,65642.0,0.076151]
[1727600799938,0.089647,65646.0,65645.0,0.12]
[1727600800141,0.086147,65646.0,65645.0,0.12]
[1727600800336,0.076147,65646.0,65645.0,0.12]
[1727600800537,0.086147,65646.0,65645.0,0.12]
[1727600801133,0.086147,65646.0,65645.0,0.14347]
[1727600803131,0.19960937,65646.0,65645.0,0.02347]
[1727600803330,0.19960937,65646.0,65645.0,0.14347]
[1727600803739,0.19960937,65646.0,65645.0,0.14447]
[1727600804138,0.19960937,65646.0,65645.0,0.14547]
[1727600806448,0.19960937,65646.0,65645.0,0.15552]
[1727600807147,0.19960784,65646.0,65645.0,0.03552]
[1727600807331,0.19960784,65646.0,65645.0,0.15552]
[1727600811346,0.086147,65646.0,65645.0,0.15552]
[1727600811643,0.01,65646.0,65645.0,0.231668]
[1727600817543,0.3608,65649.0,65645.0,0.15552]
[1727600817753,0.3608,65649.0,65648.0,0.06063633]
[1727600817942,0.3608,65649.0,65647.0,0.12]
[1727600818138,0.11345639,65648.0,65647.0,0.155855]
[1727600820846,0.11345356,65648.0,65647.0,0.155855]
[1727600821253,0.11345356,65648.0,65647.0,0.156855]
[1727600822139,0.11345356,65648.0,65647.0,0.157855]
[1727600824846,0.11345356,65648.0,65647.0,0.163335]
[1727600825052,0.11345356,65648.0,65647.0,0.223335]
[1727600825450,0.11345356,65648.0,65647.0,0.260835]
[1727600825852,0.11345356,65648.0,65647.0,0.278825]
[1727600826056,0.10645356,65648.0,65647.0,1.335825]
[1727600826355,0.27418707,65662.0,65647.0,0.59850863]
[1727600826556,0.27418707,65662.0,65661.0,0.1957042]
[1727600826742,0.27418707,65662.0,65661.0,0.30413284]
[1727600827151,0.27418707,65662.0,65661.0,0.12]
[1727600827358,0.27418707,65662.0,65661.0,0.1957042]
[1727600828057,0.28418707,65662.0,65661.0,0.1957042]
[1727600828244,0.28418707,65662.0,65661.0,0.12]
[1727600829357,0.27418707,65662.0,65661.0,0.12]
[1727600829557,0.27418707,65662.0,65661.0,0.121]
[1727600830858,0.63498707,65662.0,65661.0,0.121]
[1727600831246,0.63498707,65662.0,65661.0,0.122]
[1727600831559,0.55885907,65662.0,65661.0,0.198129]
[1727600832454,0.55885907,65662.0,65661.0,0.30595062]
[1727600833253,0.72689533,65662.0,65659.0,0.02711149]
[1727600833447,0.16803626,65661.0,65655.0,0.0035]
[1727600833651,0.19748616,65659.0,65655.0,0.0035]
[1727600833863,0.16803626,65658.0,65655.0,0.01]
[1727600834054,0.16803626,65657.0,65656.0,0.076135]
[1727600834255,0.1134284,65657.0,65656.0,0.076135]
[1727600834451,0.16803626,65657.0,65656.0,0.076135]
[1727600834656,0.05460786,65660.0,65659.0,0.076131]
[1727600834959,0.16803625,65660.0,65659.0,0.207181]
[1727600836460,0.11342839,65660.0,65659.0,0.207181]
[1727600836663,0.11342839,65660.0,65659.0,0.208181]
[1727600837658,0.11342839,65660.0,65659.0,0.218181]
[1727600838956,0.11342839,65660.0,65659.0,0.217181]
[1727600839265,0.11342839,65660.0,65659.0,0.218181]
[1727600841260,0.3608,65662.0,65661.0,0.076129]
[1727600841455,0.3608,65662.0,65661.0,0.126129]
[1727600841972,0.3608,65662.0,65661.0,0.26064565]
[1727600842157,0.3608,65662.0,65661.0,0.26059837]
[1727600843365,0.436923,65667.0,65661.0,0.18445156]
[1727600843560,0.436923,65667.0,65666.0,0.12]
[1727600843755,0.3608,65667.0,65666.0,0.196123]
[1727600844157,0.3608,65667.0,65666.0,0.25653147]
[1727600844355,0.3608,65667.0,65666.0,0.196123]
[1727600845168,0.3608,65667.0,65666.0,0.25653068]
[1727600845359,0.3608,65667.0,65666.0,0.196123]
[1727600847565,0.3608,65667.0,65666.0,0.203603]
[1727600848271,0.47422068,65667.0,65666.0,0.203603]
[1727600849768,0.47422068,65667.0,65666.0,0.221593]
[1727600851380,0.47422068,65667.0,65666.0,0.24874654]
[1727600851877,0.42749025,65667.0,65666.0,0.24874654]
[1727600852463,0.06669025,65667.0,65666.0,0.24874654]
[1727600852664,0.42749025,65667.0,65666.0,0.24874654]
[1727600854275,0.42749025,65667.0,65666.0,0.25874654]
[1727600855275,0.43749025,65667.0,65666.0,0.25874654]
[1727600855782,0.43749025,65667.0,65666.0,0.24874654]
[1727600855982,0.79698,65671.0,65666.0,0.84874654]
[1727600856168,0.13698619,65675.0,65674.0,0.152228]
[1727600856169,0.00030175,65675.0,65674.0,0.152228]
[1727600856362,0.0035,65684.0,65681.0,0.076106]
[1727600856568,0.0035,65684.0,65681.0,1.15812099]
[1727600857675,0.0035,65684.0,65681.0,1.16817099]
[1727600858180,0.0035,65684.0,65681.0,1.00300394]
[1727600858366,0.0035,65684.0,65681.0,1.017417]
[1727600859367,0.0035,65684.0,65681.0,1.78570859]
[1727600859678,0.0035,65684.0,65681.0,2.04362742]
[1727600860174,0.0035,65684.0,65681.0,1.78570859]
[1727600860369,0.0035,65684.0,65681.0,1.77129553]
[1727600860675,0.0035,65684.0,65681.0,2.05882215]
[1727600860878,0.0035,65684.0,65681.0,2.08629298]
[1727600861072,0.0035,65684.0,65681.0,2.08729298]
[1727600861273,0.0035,65684.0,65681.0,1.96642503]
[1727600862076,0.0035,65684.0,65681.0,2.07185102]
[1727600862469,0.0035,65684.0,65681.0,1.81417942]
[1727600863383,0.0035,65684.0,65681.0,1.57371842]
[1727600863573,0.0035,65684.0,65681.0,0.85371842]
[1727600863874,0.0035,65684.0,65681.0,0.97371842]
[1727600864477,0.0035,65684.0,65681.0,0.99170842]
[1727600864669,0.0035,65684.0,65683.0,0.076104]
[1727600864876,0.0348,65687.0,65686.0,0.0761]
[1727600865177,0.0348,65687.0,65686.0,0.1961]
[1727600865377,0.39907226,65687.0,65686.0,0.1961]
[1727600866282,0.39907226,65687.0,65686.0,0.2061]
[1727600866473,0.0348,65687.0,65686.0,0.2061]
[1727600868188,0.0348,65687.0,65686.0,0.2071]
[1727600868685,0.0348,65687.0,65686.0,0.2081]
[1727600871380,0.0348,65687.0,65686.0,0.21357]
[1727600878284,0.03192691,65694.0,65690.0,0.076095]
[1727600878487,0.03192691,65694.0,65693.0,0.04519889]
[1727600878690,0.12801791,65694.0,65693.0,0.04519889]
[1727600878982,0.49229017,65694.0,65693.0,0.04519889]
[1727600879184,0.49229017,65694.0,65691.0,0.076094]
[1727600879185,0.49229017,65694.0,65691.0,0.13635919]
[1727600879382,0.49229017,65694.0,65691.0,0.076094]
[1727600879383,0.36427226,65692.0,65691.0,0.076094]
[1727600879578,0.36427226,65692.0,65691.0,0.13635919]
[1727600880180,0.36427226,65692.0,65691.0,0.076094]
[1727600880986,0.36427226,65692.0,65691.0,0.086094]
[1727600881985,0.36427226,65692.0,65691.0,0.087094]
[1727600883187,0.36427226,65692.0,65691.0,0.16236407]
[1727600883388,0.36427226,65692.0,65691.0,0.18922588]
[1727600883593,0.36427226,65692.0,65691.0,0.17922588]
[1727600884092,0.36427226,65692.0,65691.0,0.22367712]
[1727600885785,0.36427226,65692.0,65691.0,0.22467712]
[1727600886182,0.36427226,65692.0,65691.0,0.35562366]
[1727600886383,0.31097198,65692.0,65691.0,0.35562366]
[1727600886584,0.31097198,65692.0,65691.0,0.35574497]
[1727600888193,0.31097198,65692.0,65691.0,0.47574497]
[1727600889279,0.0325,65693.0,65691.0,0.47574497]
[1727600889280,0.0325,65693.0,65692.0,0.076093]
[1727600889483,0.0325,65693.0,65692.0,0.35693216]
[1727600889693,0.0325,65693.0,65692.0,0.52153714]
[1727600891400,0.0325,65693.0,65692.0,0.52064488]
[1727600892292,0.00030175,65695.0,65694.0,0.076091]
[1727600892489,0.00030175,65695.0,65694.0,0.20553493]
[1727600893298,0.00030175,65695.0,65694.0,0.2053754]
[1727600893595,0.02969505,65695.0,65694.0,0.096091]
[1727600893790,0.02969505,65695.0,65694.0,0.097091]
[1727600893999,0.11366471,65695.0,65694.0,0.097091]
[1727600895385,0.11366471,65695.0,65694.0,0.098091]
[1727600895591,0.11366471,65695.0,65694.0,0.26461]
[1727600896489,0.11366471,65695.0,65694.0,0.26361]
[1727600896691,0.2810028,65695.0,65694.0,0.38461]
[1727600896891,0.2810028,65695.0,65694.0,0.4026]
[1727600897486,0.11366471,65695.0,65694.0,0.4026]
[1727600898891,0.11366471,65695.0,65694.0,0.40807]
[1727600899703,0.11366471,65695.0,65694.0,0.28807]
[1727600900200,0.11366471,65695.0,65694.0,0.40807]
[1727600901395,0.00030175,65695.0,65694.0,0.6475302]
[1727600902400,0.00030175,65695.0,65694.0,0.67132328]
[1727600902703,0.00030175,65695.0,65694.0,0.70939221]
[1727600903292,0.16733809,65696.0,65695.0,0.07609]
[1727600903488,0.16733809,65696.0,65695.0,0.3255502]
[1727600903700,0.16733809,65696.0,65695.0,0.48840963]
[1727600905299,0.0326,65698.0,65697.0,0.076087]
[1727600905499,0.34357198,65698.0,65697.0,0.67608337]
[1727600906093,0.34357198,65698.0,65697.0,0.80615278]
[1727600906596,0.34357198,65698.0,65697.0,0.67608337]
[1727600906798,0.34357198,65698.0,65697.0,0.80614824]
[1727600907098,0.34357198,65698.0,65697.0,0.67608337]
[1727600907099,0.35357198,65698.0,65697.0,0.67608337]
[1727600907594,0.34357198,65698.0,65697.0,0.67608337]
[1727600908399,0.45693196,65698.0,65697.0,0.568887]
[1727600908598,0.60899964,65698.0,65697.0,0.568887]
[1727600910398,0.45693196,65698.0,65697.0,0.568887]
[1727600913407,0.45693196,65698.0,65697.0,0.574597]
[1727600916402,0.34357198,65698.0,65697.0,0.8138206]
[1727600916603,0.29027592,65698.0,65697.0,0.8138206]
[1727600919208,0.29027592,65698.0,65697.0,0.8238706]
[1727600920309,0.29027592,65698.0,65697.0,0.98782699]
[1727600920497,0.29027592,65698.0,65697.0,0.74860339]
[1727600920811,0.29027592,65698.0,65697.0,0.99231863]
[1727600921414,0.29027592,65698.0,65697.0,1.10176175]
[1727600922316,0.29027592,65698.0,65697.0,1.06369458]
[1727600922511,0.29027592,65698.0,65697.0,0.99231863]
[1727600923113,0.29027592,65698.0,65697.0,1.10176115]
[1727600923312,0.25220896,65698.0,65697.0,1.10176115]
[1727600923514,0.25220896,65698.0,65697.0,0.86351591]
[1727600923515,0.36556404,65698.0,65697.0,0.86351591]
[1727600925708,0.36556404,65698.0,65697.0,0.88151591]
[1727600926812,0.36556404,65698.0,65697.0,0.8339322]
[1727600928022,0.36556404,65698.0,65697.0,0.8440922]
[1727600928617,0.36556404,65698.0,65697.0,0.78223339]
[1727600928618,0.11335508,65698.0,65697.0,0.78223339]
[1727600929014,0.11335508,65698.0,65697.0,0.94602499]
[1727600929318,0.11335508,65698.0,65697.0,0.98409155]
[1727600929617,0.28076045,65698.0,65697.0,0.98409155]
[1727600929919,0.11335508,65698.0,65697.0,0.98645155]
[1727600930114,0.28076045,65698.0,65697.0,0.98645155]
[1727600930312,0.28075924,65698.0,65697.0,0.98645155]
[1727600931209,0.11335387,65698.0,65697.0,0.98645155]
[1727600931609,0.0341,65702.0,65700.0,0.076083]
[1727600931814,0.0341,65702.0,65701.0,0.35770979]
[1727600932120,0.0341,65702.0,65701.0,0.61018363]
[1727600932311,0.28630896,65702.0,65701.0,0.61018363]
[1727600932616,0.28630896,65702.0,65701.0,0.75018363]
[1727600932820,0.28630896,65702.0,65701.0,0.62092365]
[1727600933021,0.44630896,65702.0,65701.0,0.36259937]
[1727600933224,0.44630896,65702.0,65701.0,0.47710881]
[1727600933621,0.44630896,65702.0,65701.0,0.33810881]
[1727600934124,0.44630896,65702.0,65701.0,0.34381881]
[1727600934820,0.32630896,65702.0,65701.0,0.30575225]
[1727600935028,0.44630896,65702.0,65701.0,0.30575225]
[1727600935522,0.44630896,65702.0,65701.0,0.28196065]
[1727600936617,0.44630896,65702.0,65701.0,0.28296065]
[1727600938621,0.25220896,65701.0,65700.0,0.07486223]
[1727600938823,0.37556949,65701.0,65700.0,0.15094623]
[1727600939418,0.37556949,65701.0,65700.0,0.15839429]
[1727600939829,0.37556949,65701.0,65700.0,0.15939429]
[1727600940024,0.37556848,65701.0,65700.0,0.18616231]
[1727600940214,0.37556848,65701.0,65700.0,0.19163231]
[1727600940718,0.45165148,65701.0,65700.0,0.19263231]
[1727600940918,0.57165148,65701.0,65700.0,0.19263231]
[1727600941726,0.57165148,65701.0,65700.0,0.11777008]
[1727600941928,0.45829196,65701.0,65700.0,0.12782008]
[1727600942119,0.57165176,65701.0,65700.0,0.12782008]
[1727600942424,0.57165176,65701.0,65700.0,0.05173608]
[1727600944013,1.17165176,65701.0,65700.0,0.04428802]
[1727600944217,1.30230994,65701.0,65700.0,0.01752]
[1727600944528,0.076086,65698.0,65697.0,0.02386]
[1727600944829,0.07609,65695.0,65694.0,0.0035]
[1727600945125,0.07609,65695.0,65690.0,0.02376686]
[1727600945126,0.076094,65691.0,65690.0,0.02376686]
[1727600945330,0.32830696,65688.0,65687.0,0.00228312]
[1727600945625,0.4093117,65688.0,65687.0,0.203117]
[1727600946134,0.4093117,65688.0,65687.0,0.21080509]
[1727600946328,0.4093117,65688.0,65687.0,0.2108078]
[1727600946631,0.4093117,65688.0,65687.0,0.12012735]
[1727600946632,0.71680191,65688.0,65687.0,0.12012735]
[1727600947124,0.71680191,65688.0,65687.0,0.19565426]
[1727600947325,0.71680191,65688.0,65687.0,0.08568691]
[1727600947529,0.71880191,65688.0,65687.0,0.01116]
[1727600947920,0.71880191,65688.0,65687.0,0.08668691]
[1727600948131,1.31880191,65688.0,65687.0,0.01116]
[1727600948332,1.32180191,65688.0,65687.0,0.01216]
[1727600948731,1.32180191,65688.0,65687.0,0.05746118]
[1727600948732,1.39789991,65688.0,65687.0,0.05746118]
[1727600949027,1.39789991,65688.0,65687.0,0.00756118]
[1727600949232,1.32180191,65688.0,65683.0,0.06036975]
[1727600949434,0.12,65685.0,65683.0,0.06036975]
[1727600949733,0.13010391,65684.0,65683.0,0.06036975]
[1727600949925,0.31620591,65684.0,65683.0,0.06036975]
[1727600950121,0.31620591,65684.0,65682.0,0.06036975]
[1727600950325,0.12,65683.0,65682.0,0.06036975]
[1727600950534,0.32990391,65683.0,65682.0,0.06036975]
[1727600950935,0.69070391,65683.0,65682.0,0.06036975]
[1727600951229,0.69070391,65683.0,65676.0,0.0035]
[1727600951230,0.076105,65682.0,65681.0,0.06036975]
[1727600951428,0.296105,65682.0,65681.0,0.06036975]
[1727600951731,0.39600891,65682.0,65681.0,0.06036975]
[1727600952233,0.076106,65681.0,65680.0,0.06036975]
[1727600952528,0.296106,65681.0,65680.0,0.06036975]
[1727600952730,0.39600991,65681.0,65680.0,0.06036975]
[1727600953421,0.076107,65680.0,65679.0,0.06036975]
[1727600953621,0.076108,65679.0,65678.0,0.07552691]
[1727600953817,0.216108,65679.0,65678.0,0.07552691]
[1727600954034,0.31601191,65679.0,65678.0,0.07552691]
[1727600954234,0.31601191,65679.0,65677.0,0.07552691]
[1727600954435,0.216108,65679.0,65677.0,0.07552691]
[1727600954629,0.09990391,65678.0,65675.0,0.076113]
[1727600954836,0.196108,65679.0,65676.0,0.18447186]
[1727600955127,0.196108,65679.0,65678.0,0.3608]
[1727600955333,0.196108,65679.0,65678.0,0.46916086]
[1727600955532,0.29601191,65679.0,65678.0,0.46916086]
[1727600955831,0.09990391,65679.0,65678.0,0.54526986]
[1727600956027,0.09990391,65679.0,65678.0,0.66526986]
[1727600956330,0.09990391,65679.0,65678.0,0.75595031]
[1727600956735,0.09990391,65679.0,65678.0,0.66526986]
[1727600956932,0.09990391,65679.0,65678.0,0.67526986]
[1727600957230,0.10290391,65679.0,65678.0,0.67526986]
[1727600957536,0.10590391,65679.0,65678.0,0.67483537]
[1727600958233,0.10590391,65679.0,65678.0,0.66483537]
[1727600958433,0.11590391,65679.0,65678.0,0.66483537]
[1727600958737,0.10590391,65679.0,65678.0,0.66483537]
[1727600960630,0.10590391,65679.0,65678.0,0.61717676]
[1727600962233,0.10590391,65679.0,65678.0,0.556909]
[1727600963236,0.10590391,65679.0,65678.0,0.67719389]
[1727600964437,0.10490391,65679.0,65678.0,0.616909]
[1727600966236,0.10490391,65679.0,65678.0,0.67721286]
[1727600966432,0.10190391,65679.0,65678.0,0.67721286]
[1727600967437,0.10190391,65679.0,65678.0,0.61721286]
[1727600968133,0.10190391,65679.0,65678.0,0.25641286]
[1727600968331,0.06182368,65679.0,65678.0,0.25641286]
[1727600968531,0.0191274,65679.0,65678.0,0.43314292]
[1727600968739,0.076106,65682.0,65678.0,0.43314292]
[1727600968938,0.096106,65682.0,65680.0,0.09050972]
[1727600969241,0.096106,65682.0,65681.0,0.23004752]
[1727600971141,0.096106,65682.0,65681.0,0.1395378]
[1727600971440,0.0035,65683.0,65681.0,0.3356438]
[1727600971633,0.0035,65683.0,65682.0,0.1081378]
[1727600971835,0.1961,65686.0,65682.0,0.1081378]
[1727600972035,0.2061,65686.0,65683.0,0.19870133]
[1727600972337,0.2061,65686.0,65685.0,0.09056353]
[1727600972538,0.0861,65686.0,65685.0,0.19870133]
[1727600973126,0.0861,65686.0,65685.0,0.23650247]
[1727600973327,0.0861,65686.0,65685.0,0.1081378]
[1727600973541,0.0861,65686.0,65685.0,0.23650644]
[1727600973850,0.0861,65686.0,65685.0,0.1081378]
[1727600974245,0.0861,65686.0,65685.0,0.2366139]
[1727600975644,0.0891,65686.0,65685.0,0.2376139]
[1727600976434,0.0901,65686.0,65685.0,0.2386139]
[1727600976636,0.014,65686.0,65685.0,0.2386139]
[1727600976841,0.014,65686.0,65685.0,0.23748796]
[1727600977144,0.0901,65686.0,65685.0,0.23748796]
[1727600981750,0.0901,65686.0,65685.0,0.23754744]
[1727600983740,0.0901,65686.0,65685.0,0.002]
[1727600987848,0.0901,65686.0,65685.0,0.198101]
[1727600990643,0.04440644,65686.0,65685.0,0.4336545]
[1727600990849,0.05440644,65686.0,65685.0,0.4336545]
[1727600991551,0.05440644,65686.0,65685.0,0.43363494]
[1727600998645,0.08380612,65686.0,65685.0,0.198101]
[1727601000758,0.05440644,65686.0,65685.0,0.198101]
[1727601000944,0.08380617,65686.0,65685.0,0.198101]
[1727601002361,0.08380621,65686.0,65685.0,0.198101]
[1727601002657,0.16089879,65686.0,65685.0,0.198101]
[1727601002853,0.19029856,65686.0,65685.0,0.198101]
[1727601003058,0.19029856,65686.0,65685.0,0.078101]
[1727601004561,0.19029856,65686.0,65685.0,0.002]
[1727601004858,0.31029856,65686.0,65685.0,0.002]
[1727601005652,0.28089879,65686.0,65685.0,0.23667659]
[1727601006554,0.22758953,65686.0,65685.0,0.23667659]
[1727601006960,0.12109718,65686.0,65685.0,0.23667659]
[1727601007154,0.19719718,65686.0,65685.0,0.23667659]
[1727601013358,0.0761,65686.0,65685.0,0.23667659]
[1727601013756,0.11550001,65686.0,65685.0,0.002]
[1727601014560,0.11549999,65686.0,65685.0,0.002]
[1727601019477,0.15277152,65686.0,65685.0,0.002]
[1727601020672,0.0861,65686.0,65685.0,0.23517944]
[1727601028676,0.19948884,65686.0,65685.0,0.002]
[1727601028872,0.33653671,65686.0,65685.0,0.002]
[1727601034078,0.22314787,65686.0,65685.0,0.002]
[1727601034277,0.30713635,65686.0,65685.0,0.002]
[1727601034477,0.33653625,65686.0,65685.0,0.002]
[1727601035683,0.0861,65686.0,65685.0,0.23511846]
[1727601036486,0.01,65686.0,65685.0,0.23511846]
[1727601037191,0.0861,65686.0,65685.0,0.23511846]
[1727601047393,0.0861,65686.0,65685.0,0.10835152]
[1727601048905,0.0861,65686.0,65685.0,0.10801872]
[1727601050904,0.15277142,65686.0,65685.0,0.002]
[1727601053801,0.19948864,65686.0,65685.0,0.002]
[1727601058706,0.11549943,65686.0,65685.0,0.23375477]
[1727601058912,0.03,65686.0,65685.0,0.33973284]
[1727601059115,0.1061,65686.0,65685.0,0.33973284]
[1727601059902,0.1061,65686.0,65685.0,0.23430685]
[1727601061007,0.0035,65687.0,65685.0,0.48546238]
[1727601061196,0.0435,65687.0,65686.0,0.23230685]
[1727601061404,0.04,65687.0,65686.0,0.23230685]
[1727601062111,0.1161,65687.0,65686.0,0.30840685]
[1727601064114,0.1161,65687.0,65686.0,0.30940685]
[1727601066014,0.1161,65687.0,65686.0,0.31040685]
[1727601066604,0.0727921,65687.0,65686.0,0.31040685]
[1727601067709,0.0727921,65687.0,65686.0,0.43040685]
[1727601071905,0.0727921,65687.0,65686.0,0.30822676]
[1727601072816,0.0727921,65687.0,65686.0,0.23212676]
[1727601073515,0.0727921,65687.0,65686.0,0.10698667]
[1727601073718,0.076107,65680.0,65679.0,0.0035]
[1727601073919,0.076107,65680.0,65676.0,0.31505131]
[1727601073920,0.42197403,65680.0,65676.0,0.31505131]
[1727601074220,0.42197403,65680.0,65677.0,0.07611]
[1727601074221,0.19197603,65679.0,65677.0,0.07611]
[1727601074414,0.11586703,65678.0,65677.0,0.07611]
[1727601074613,0.12586703,65678.0,65677.0,0.07611]
[1727601076821,0.11586703,65678.0,65677.0,0.13611]
[1727601077520,0.11786703,65678.0,65677.0,0.13611]
[1727601078708,0.12786703,65678.0,65677.0,0.13611]
[1727601079323,0.12786703,65678.0,65677.0,0.15990958]
[1727601079515,0.12786703,65678.0,65677.0,0.13611]
[1727601079817,0.12786703,65678.0,65677.0,0.07611]
[1727601080923,0.04241079,65680.0,65677.0,0.34358269]
[1727601081126,0.06241079,65680.0,65679.0,0.22590368]
[1727601081311,0.06241079,65680.0,65679.0,0.49337637]
[1727601081517,0.06241079,65680.0,65679.0,0.35017794]
[1727601082322,0.06241079,65680.0,65679.0,0.49397259]
[1727601082517,0.06241079,65680.0,65679.0,0.12]
[1727601083627,0.06341079,65680.0,65679.0,0.12]
[1727601086527,0.06341079,65680.0,65679.0,0.24390444]
[1727601088734,0.06341079,65680.0,65679.0,0.34792502]
[1727601088929,0.18517009,65680.0,65679.0,0.12]
[1727601089227,0.25398428,65680.0,65679.0,0.12]
[1727601089432,0.28658428,65680.0,65679.0,0.12]
[1727601091126,0.28661374,65680.0,65679.0,0.12]
[1727601091332,0.16485444,65680.0,65679.0,0.12]
[1727601091724,0.21773349,65680.0,65679.0,0.12]
[1727601092027,0.16485444,65680.0,65679.0,0.12]
[1727601092425,0.24244365,65680.0,65676.0,0.02709843]
[1727601092623,0.24244365,65680.0,65675.0,0.60192042]
[1727601092624,0.076112,65676.0,65675.0,0.60192042]
[1727601092826,0.20261903,65676.0,65675.0,0.59992042]
[1727601093024,0.23418818,65676.0,65675.0,0.59992042]
[1727601093921,0.12768115,65676.0,65675.0,0.59992042]
[1727601094722,0.12768115,65676.0,65675.0,0.62768974]
[1727601094918,0.16495616,65676.0,65675.0,0.62768974]
[1727601095636,0.16495616,65676.0,65675.0,0.65149091]
[1727601095827,0.096112,65676.0,65675.0,0.98537452]
[1727601096536,0.02,65676.0,65675.0,0.98537452]